Cogmind - Beta 14 *** ADVENTURER MODE // 2025.03.20 @ 23:08:47 Player: crsstev Result: Destroyed by G-47 Trooper with Particle Gun Performance ------------- Evolutions (3) 1500 Regions Visited (8) 1600 Robots Destroyed (79) 395 Value Destroyed (2332) 2332 Prototype IDs (6) 120 Alien Tech Used (0) 0 Bonus (627) 627 TOTAL SCORE: 6574 Bonus ------- Entered Garrisons 200 Entered DSFs 500 Friendly Fire -73 Cogmind --------- Core Integrity 0/700 Matter 50/300 Energy 240/240 System Corruption 3% Temperature Hot (274) Movement Treading (160) Location -7/Garrison Parts ------- > --- POWER (1) -------- Nuclear Core > --- PROPULSION (4) --- Medium Treads Medium Treads > --- UTILITY (5) ------ Improved Heat Sink Large Storage Unit Machine Analyzer > --- WEAPON (3) ------- Chainsword > --- INVENTORY (15) --- Nuclear Core Nuclear Core Trap Scanner Authchip [Device] Peak State ------------ > --- POWER ------------ Nuclear Core > --- PROPULSION ------- Medium Treads Medium Treads Medium Treads Medium Treads > --- UTILITY ---------- Large Storage Unit Improved Signal Interpreter Target Analyzer Hardened Light Armor Plating Hardened Medium Armor Plating > --- WEAPON ----------- Heavy Particle Cannon Improved Assault Rifle Assault Cannon > --- INVENTORY -------- Nuclear Core Nuclear Core Trap Scanner Machine Analyzer Core Analyzer Kinecellerator Reactive Plating Authchip [Device] Assault Cannon [Rating: 43] Favorites ----------- Power Ion Engine Engine Ion Engine Power Core Nuclear Core Propulsion Light Treads Treads Light Treads Leg Titanium Leg Utility Large Storage Unit Device Sensor Array Storage Large Storage Unit Processor Signal Interpreter Protection Reactive Plating Weapon Assault Rifle Energy Gun EM Pulse Gun Energy Cannon Beam Cannon Ballistic Gun Assault Rifle Ballistic Cannon Assault Cannon Launcher Grenade Launcher Slashing Weapon Chainsword Special Melee Weapon Datajack Build | -11 -10 -10 -10 -9 -8 -7 -7 -7 ------- Run | Yrd Mat Min Exi Min Mat Fac DSF Gar Slots Evolved 6 | . . . . . 4 2 . . Power . | . . . . . . . . . Propulsion 2 | . . . . . 2 . . . Utility 3 | . . . . . 2 1 . . Weapon 1 | . . . . . . 1 . . Parts Attached 82 | 7 7 6 . 1 37 2 14 8 Power 8 | 1 . 1 . . 4 . 2 . Engine 5 | 1 . 1 . . 3 . . . Core 3 | . . . . . 1 . 2 . Reactor . | . . . . . . . . . Propulsion 26 | 2 1 2 . . 13 . 8 . Treads 22 | 2 1 2 . . 11 . 6 . Leg 4 | . . . . . 2 . 2 . Wheel . | . . . . . . . . . Hover . | . . . . . . . . . Flight . | . . . . . . . . . Utility 23 | 1 3 1 . . 10 1 2 5 Device 7 | . . . . . 5 . . 2 Storage 4 | 1 2 . . . 1 . . . Processor 8 | . 1 1 . . 3 1 . 2 Hackware . | . . . . . . . . . Protection 4 | . . . . . 1 . 2 1 Artifact . | . . . . . . . . . Weapon 25 | 3 3 2 . 1 10 1 2 3 Energy Gun 4 | 1 . . . . 3 . . . Energy Cannon 4 | . 1 . . 1 1 1 . . Ballistic Gun 7 | 2 1 1 . . 2 . . 1 Ballistic Cannon 5 | . . . . . 3 . 1 1 Launcher 3 | . 1 1 . . . . 1 . Special Weapon . | . . . . . . . . . Impact Weapon . | . . . . . . . . . Slashing Weapon 1 | . . . . . . . . 1 Piercing Weapon . | . . . . . . . . . Special Melee Weapon 1 | . . . . . 1 . . . Unidentified Prototypes 1 | . . . . . 1 . . . Parts Lost 24 | . 1 1 . 1 9 . 6 6 Power 2 | . . . . . 2 . . . Propulsion 7 | . . . . . 3 . 4 . Utility 8 | . . . . . 2 . 2 4 Weapon 7 | . 1 1 . 1 2 . . 2 Highest Loss Streak 7 | . 1 1 . 1 7 . 3 6 To Critical Strikes . | . . . . . . . . . Average Slot Usage (%) 95 | . 99 99 100 100 88 92 83 79 Engine 10 | . 14 14 14 14 5 . . . Core 1 | . . . . . 2 7 7 7 Treads 25 | . 28 28 28 28 23 23 13 15 Leg 1 | . . . . . 4 . 4 . Device 2 | . . . . . 9 7 1 6 Storage 12 | . 14 14 14 14 9 7 7 7 Processor 14 | . 13 14 14 14 14 23 19 2 Protection 1 | . . . . . 1 . 6 18 Energy Gun 1 | . 6 . . . 2 . . . Energy Cannon 5 | . 7 11 . 10 2 7 7 . Ballistic Gun 10 | . 13 13 14 14 3 7 7 6 Ballistic Cannon 2 | . . . . . 8 7 5 6 Launcher 4 | . . 2 14 3 . . 1 . Peak Build Rating 43 | 6 9 10 9 11 28 29 43 39 Average Rating 14 | 4 8 9 9 9 22 28 30 36 On Entrance 15 | . 6 9 9 9 11 24 29 43 Naked Turns . | . . . . . . . . . Heaviest Build 67 | 14 31 30 30 30 46 42 54 67 Greatest Support 112 | 40 40 40 40 40 84 60 112 56 Greatest Overweight (x) 5 | . . . . . 2 . 5 1 Average Overweight (x) . | . . . . . . . . . Largest Inventory Capacity 15 | 8 15 15 15 15 15 15 15 15 Average Capacity 14 | 7 11 15 15 15 15 15 15 15 Most Carried 15 | 5 10 11 9 12 15 13 15 11 Average Carried 9 | 1 8 9 8 9 13 11 10 6 Final Capacity 15 | 8 15 15 15 15 15 15 15 15 Final Carried 14 | 2 9 8 8 12 14 11 11 4 Class Distribution -------------------- 71% | Mutant 21% | Scavenger-Mutant Dominant Class ---------------- Mutant | -10/Materials Mutant | -10/Mines Mutant | -10/Exiles Mutant | -9/Mines Scavenger-Mutant | -8/Materials Scavenger-Mutant | -7/Factory Tank | -7/DSF Mutant | -7/Garrison Resources | -11 -10 -10 -10 -9 -8 -7 -7 -7 ----------- Run | Yrd Mat Min Exi Min Mat Fac DSF Gar Matter Collected 2192 | 174 239 169 183 118 1001 . 206 102 Remotely . | . . . . . . . . . Salvage Created 2755 | . 417 265 . 123 1337 . 519 94 Parts 148 | . 31 17 . 3 64 . 26 7 Haulers Intercepted 6 | . 2 . . . 4 . . . Recyclers Shooed 1 | . . . . . 1 . . . Parts Field Recycled . | . . . . . . . . . Retrieved Matter . | . . . . . . . . . Parts Self-Destructed . | . . . . . . . . . Prevented . | . . . . . . . . . Kills | -11 -10 -10 -10 -9 -8 -7 -7 -7 ------- Run | Yrd Mat Min Exi Min Mat Fac DSF Gar Combat Hostiles Destroyed 62 | . 8 9 . 7 25 . 11 2 Melee 2 | . . . . . . . . 2 Guns 21 | . 6 3 . . 9 . 3 . Cannons 36 | . 2 6 . 4 16 . 8 . AOE 3 | . . . . 3 . . . . Classes Destroyed 15 | . 6 . . 1 5 . 3 . Worker 4 | . . . . . 4 . . . Builder 2 | . 1 . . . 1 . . . Hauler 6 | . 2 . . . 4 . . . Recycler 3 | . . . . . 3 . . . Mechanic 1 | . 1 . . . . . . . Watcher 6 | . 2 . . . 4 . . . Swarmer 14 | . 5 5 . . 4 . . . Grunt 31 | . 3 4 . 2 13 . 7 2 Brawler 1 | . . . . . . . 1 . Duelist 2 | . . . . . 1 . 1 . Sentry 6 | . . . . . 6 . . . Specialist 1 | . . . . . . . 1 . Hunter 1 | . . . . . 1 . . . Heavy 1 | . . . . . . . 1 . Assembled 5 | . . . . 5 . . . . Best Kill Streak 8 | . 3 3 . 2 8 . 4 2 Combat Bots Only 4 | . 3 3 . 2 4 . 4 2 Max Kills in Single Turn 2 | . 1 1 . 2 2 . 1 1 Gunslinging . | . . . . . . . . . Exploded 2 | . . . . 2 . . . . Melee 1 | . . . . . . . . 1 Uniques/NPCs Destroyed . | . . . . . . . . . Combat | -11 -10 -10 -10 -9 -8 -7 -7 -7 -------- Run | Yrd Mat Min Exi Min Mat Fac DSF Gar Hostile Shots Fired 630 | . 39 48 . 40 251 . 103 149 Missed 171 | . 10 10 . 13 57 . 32 49 Damage Taken 5627 | . 268 289 . 388 2018 . 1635 1029 Core 1096 | . 34 35 . 39 279 . 584 125 Absorbed by Shields . | . . . . . . . . . Ignored by Resistances 1578 | . 83 92 . 113 612 . 329 349 Regen/Repaired (Parts) 133 | . . . . . 133 . . . Core Remaining (%) 68 | 100 . . . 56 49 . . . Volleys Fired 263 | . 34 40 . 21 135 . 27 6 Largest 3 | . 2 2 . 2 2 . 3 2 Hottest 142 | . 80 80 . 80 109 . 142 74 Shots Fired 498 | . 61 77 . 42 231 . 75 12 Gun 223 | . 46 39 . 21 86 . 25 6 Cannon 240 | . 12 20 . 16 145 . 41 6 Launcher 35 | . 3 18 . 5 . . 9 . Special . | . . . . . . . . . Kinetic 292 | . 31 39 . 21 148 . 41 12 Thermal 142 | . 12 20 . 16 69 . 25 . Explosive 35 | . 3 18 . 5 . . 9 . Electromagnetic 29 | . 15 . . . 14 . . . Robot Hit Streak 24 | . 20 9 . 11 19 . 22 24 Robot Miss Streak 2 | . 1 1 . 1 1 . 2 . Penetration Max . | . . . . . . . . . Secondary Targets . | . . . . . . . . . Shots Hit Robots 363 | . 49 28 . 27 190 . 56 13 Core Hits 145 | . 18 16 . 19 63 . 27 2 Critical Kills 1 | . 1 . . . . . . . Critical Parts Destroyed . | . . . . . . . . . Critical Strikes 9 | . 1 . . . 7 . 1 . Burn 1 | . . . . . 1 . . . Destroy 2 | . 1 . . . . . 1 . Blast 5 | . . . . . 5 . . . Corrupt 1 | . . . . . 1 . . . Melee Attacks 3 | . . . . . . . . 3 Impact . | . . . . . . . . . Slashing 3 | . . . . . . . . 3 Piercing . | . . . . . . . . . Sneak Attacks . | . . . . . . . . . Combat Hostiles . | . . . . . . . . . Follow-up Attacks . | . . . . . . . . . Damage Inflicted 7282 | . 774 497 . 639 3751 . 1266 355 Guns 2387 | . 494 128 . 144 1193 . 304 124 Cannons 4202 | . 194 296 . 230 2558 . 795 129 Explosions 570 | . 86 73 . 244 . . 167 . Melee 102 | . . . . . . . . 102 Ramming 21 | . . . . 21 . . . . Kinetic 3949 | . 299 128 . 144 2551 . 574 253 Thermal 2321 | . 280 296 . 230 990 . 525 . Explosive 484 | . . 73 . 244 . . 167 . Electromagnetic 405 | . 195 . . . 210 . . . Impact . | . . . . . . . . . Slashing 102 | . . . . . . . . 102 Piercing . | . . . . . . . . . Highest Corruption 3 | . . . . . . . 1 3 Average Corruption 1 | . . . . . . . 1 1 Corruption Purged . | . . . . . . . . . Corruption Blocked . | . . . . . . . . . Effects 4 | . . . . . . . 2 2 Message Errors 1 | . . . . . . . 1 . Heat Flow Errors 2 | . . . . . . . 1 1 Alerts 1 | . . . . . . . . 1 Overload Shots . | . . . . . . . . . Overflow Damage 73 | . . 12 . . 51 . 10 . Projectiles 73 | . . 12 . . 51 . 10 . Explosions . | . . . . . . . . . Melee . | . . . . . . . . . Knockbacks 31 | . . . . 1 27 . 2 1 Impact 1 | . . . . 1 . . . . Kinetic 25 | . . . . . 22 . 2 1 Secondary 5 | . . . . . 5 . . . Self-Inflicted Damage 88 | . 28 . . 60 . . . . Shots 4 | . 1 . . 3 . . . . Rammed 3 | . . . . 3 . . . . Targets Rammed 3 | . . . . 3 . . . . Kicked . | . . . . . . . . . Crushed . | . . . . . . . . . Highest Temperature 1819 | . 75 129 . 273 363 . 1819 522 Average Temperature 152 | . 31 54 . 97 101 . 503 158 Received Heat Transfer 2454 | . 99 108 . 93 1179 . 576 399 Effects 38 | . . . . . 6 . 30 2 Shutdowns 8 | . . . . . 1 . 6 1 Energy Bleed 4 | . . . . . 2 . 2 . Interference 8 | . . . . . 3 . 5 . Matter Decay 5 | . . . . . . . 4 1 Short Circuit 4 | . . . . . . . 4 . Damage (minor) 3 | . . . . . . . 3 . Damage (major) 2 | . . . . . . . 2 . Damage (core) 4 | . . . . . . . 4 . Siege Activations . | . . . . . . . . . Robots Corrupted . | . . . . . . . . . Combat Hostiles . | . . . . . . . . . Parts Fried 2 | . . . . . 2 . . . Impact Corruptions . | . . . . . . . . . Robots Melted . | . . . . . . . . . Combat Hostiles . | . . . . . . . . . Parts Melted 2 | . 1 . . . . . 1 . Heat Transferred 4725 | . 507 629 . 481 2331 . 777 . Parts Sabotaged . | . . . . . . . . . Parts Stolen . | . . . . . . . . . Parts Stripped . | . . . . . . . . . Power Chain Reactions 2 | . 2 . . . . . . . Alert | -11 -10 -10 -10 -9 -8 -7 -7 -7 ------- Run | Yrd Mat Min Exi Min Mat Fac DSF Gar Peak Influence 263 | . 145 206 . 50 263 24 227 205 Initial 150 | . . 46 . . . 24 14 150 Average 85 | . 78 79 . 14 126 24 113 169 Maximum Alert Level 1 | . . 1 . . 1 . 1 1 Low Security (%) 86 | 100 100 80 . 100 77 100 67 85 Level 1 13 | . . 19 . . 22 . 32 14 Level 2 . | . . . . . . . . . Level 3 . | . . . . . . . . . Level 4 . | . . . . . . . . . Level 5 . | . . . . . . . . . High Security . | . . . . . . . . . Max Security . | . . . . . . . . . Sterilizations 1 | . . . . . . . 1 . Squads Dispatched 4 | . 1 . . . 2 . 1 . Investigation 3 | . 1 . . . 2 . . . Extermination . | . . . . . . . . . Reinforcement 1 | . . . . . . . 1 . Assault . | . . . . . . . . . Garrison . | . . . . . . . . . Intercept . | . . . . . . . . . Searches Triggered . | . . . . . . . . . Construction Impeded . | . . . . . . . . . Haulers Reinforced . | . . . . . . . . . Active Scanning Responses . | . . . . . . . . . Cargo Convoy Interrupts . | . . . . . . . . . Stealth | -11 -10 -10 -10 -9 -8 -7 -7 -7 --------- Run | Yrd Mat Min Exi Min Mat Fac DSF Gar Distress Signals 2 | . . . . . 2 . . . Communications Jammed . | . . . . . . . . . Distress Signals . | . . . . . . . . . Times Spotted 97 | . 17 11 . 11 38 . 12 8 Peak Tracking Total 6 | . 3 3 . 4 5 . 4 6 Tactical Retreats 8 | . 2 1 . 1 4 . . . Traps | -11 -10 -10 -10 -9 -8 -7 -7 -7 ------- Run | Yrd Mat Min Exi Min Mat Fac DSF Gar Traps Triggered 7 | . 2 . . . 3 . 2 . Indirectly . | . . . . . . . . . Trap Hack Attempts . | . . . . . . . . . Triggered . | . . . . . . . . . Disarmed 6 | . . . . . 6 . . . Reprogrammed . | . . . . . . . . . Reused . | . . . . . . . . . Traps Extracted . | . . . . . . . . . Installed . | . . . . . . . . . Triggered . | . . . . . . . . . Machines | -11 -10 -10 -10 -9 -8 -7 -7 -7 ---------- Run | Yrd Mat Min Exi Min Mat Fac DSF Gar Machines Disabled 1 | . . 1 . . . . . . Max in Single Turn 1 | . . 1 . . . . . . Machines Repaired . | . . . . . . . . . Machines Dismantled . | . . . . . . . . . Machines Sabotaged . | . . . . . . . . . Overloaded Fab Kills . | . . . . . . . . . Hacking | -11 -10 -10 -10 -9 -8 -7 -7 -7 --------- Run | Yrd Mat Min Exi Min Mat Fac DSF Gar Machines Accessed 14 | . 6 . 4 1 2 1 . . Terminals 6 | . 4 . . . 1 1 . . Fabricators . | . . . . . . . . . Repair Stations 1 | . . . . . 1 . . . Recycling Units 2 | . 2 . . . . . . . Scanalyzers . | . . . . . . . . . Garrison Access . | . . . . . . . . . Total Hacks 72 | . 15 . 49 1 6 1 . . Successful 64 | . 10 . 49 1 3 1 . . Failed 8 | . 5 . . . 3 . . . Catastrophic 1 | . 1 . . . . . . . Database Lockouts . | . . . . . . . . . Manual . | . . . . . . . . . Terminals 12 | . 9 . . . 2 1 . . Fabricators . | . . . . . . . . . Repair Stations 4 | . . . . . 4 . . . Recycling Units 6 | . 6 . . . . . . . Scanalyzers . | . . . . . . . . . Garrison Access . | . . . . . . . . . Terminal Hacks 58 | . 6 . 49 1 1 1 . . Record 50 | . 1 . 49 . . . . . Prototype ID Bank 2 | . 2 . . . . . . . Open Door 1 | . . . . 1 . . . . Open DSF 1 | . . . . . . 1 . . Branch Access Points 1 | . 1 . . . . . . . Disarm Traps 1 | . . . . . 1 . . . Reinforcement Status 1 | . 1 . . . . . . . Zone Layout 1 | . 1 . . . . . . . Fabricator Hacks . | . . . . . . . . . Repair Station Hacks 2 | . . . . . 2 . . . Scan Component 1 | . . . . . 1 . . . Repair 1 | . . . . . 1 . . . Recycling Unit Hacks 4 | . 4 . . . . . . . Report Inventory 2 | . 2 . . . . . . . Retrieve Matter 2 | . 2 . . . . . . . Scanalyzer . | . . . . . . . . . Garrison Access Hacks . | . . . . . . . . . Unauthorized Hacks . | . . . . . . . . . Terminals . | . . . . . . . . . Fabricators . | . . . . . . . . . Repair Stations . | . . . . . . . . . Recycling Units . | . . . . . . . . . Scanalyzers . | . . . . . . . . . Garrison Access . | . . . . . . . . . Data Cores Recovered . | . . . . . . . . . Used . | . . . . . . . . . Hacking Detections 7 | . 5 . . . 2 . . . Full Trace Events 2 | . 1 . . . 1 . . . Feedback Events . | . . . . . . . . . Feedback Blocked . | . . . . . . . . . Robot Schematics Acquired . | . . . . . . . . . Robots Built . | . . . . . . . . . Authchips . | . . . . . . . . . Time . | . . . . . . . . . Total Robot Build Rating . | . . . . . . . . . Part Schematics Acquired . | . . . . . . . . . Parts Built . | . . . . . . . . . Authchips . | . . . . . . . . . Time . | . . . . . . . . . Total Part Build Rating . | . . . . . . . . . Parts Repaired 1 | . . . . . 1 . . . Time 19 | . . . . . 19 . . . Parts Recycled . | . . . . . . . . . Recycled Matter . | . . . . . . . . . Retrieved Matter 215 | . 215 . . . . . . . Retrieved Components . | . . . . . . . . . Parts Scanalyzed . | . . . . . . . . . Part Schematics Acquired . | . . . . . . . . . Parts Damaged . | . . . . . . . . . Bothacking | -11 -10 -10 -10 -9 -8 -7 -7 -7 ------------ Run | Yrd Mat Min Exi Min Mat Fac DSF Gar Used RIF Installer . | . . . . . . . . . Robots Hacked . | . . . . . . . . . Non-combat . | . . . . . . . . . Combat . | . . . . . . . . . Robot Hacks Applied . | . . . . . . . . . Relay Couplers Released . | . . . . . . . . . Fabnet Peak Effective % . | . . . . . . . . . Robots Rewired . | . . . . . . . . . Allies Hacked . | . . . . . . . . . Hacks Repelled . | . . . . . . . . . Allies | -11 -10 -10 -10 -9 -8 -7 -7 -7 -------- Run | Yrd Mat Min Exi Min Mat Fac DSF Gar Total Allies 3 | . . 3 . . . . . . Largest Group 3 | . . 3 3 3 . . . . Highest-Rated Group 40 | . . 40 40 40 . . . . Highest-Rated Ally 16 | . . 16 16 16 . . . . Total Orders . | . . . . . . . . . Ally Attacks 25 | . . . . 25 . . . . Total Damage 237 | . . . . 237 . . . . Kills 8 | . . . . 8 . . . . Allies Corrupted . | . . . . . . . . . Allies Melted . | . . . . . . . . . Intel | -11 -10 -10 -10 -9 -8 -7 -7 -7 ------- Run | Yrd Mat Min Exi Min Mat Fac DSF Gar Robot Analysis Total . | . . . . . . . . . Derelict Logs Recovered 2 | . . 1 . 1 . . . . Drone Launches . | . . . . . . . . . Drone Recoveries . | . . . . . . . . . Exploration | -11 -10 -10 -10 -9 -8 -7 -7 -7 ------------- Run | Yrd Mat Min Exi Min Mat Fac DSF Gar Turns Passed 6970 | 79 1096 1020 1528 1009 1660 19 426 133 Spaces Moved 3488 | 47 579 546 954 574 602 11 134 41 Core 12 | 12 . . . . . . . . Treads 3413 | 35 579 546 954 574 570 11 103 41 Legs 63 | . . . . . 32 . 31 . Wheels . | . . . . . . . . . Hover . | . . . . . . . . . Flight . | . . . . . . . . . Fastest Speed 50 | 50 160 160 160 160 130 160 160 160 Average Speed 162 | 131 160 160 160 160 158 160 211 230 Slowest Speed 470 | 160 160 160 160 160 305 160 470 240 Overloaded Moves . | . . . . . . . . . Propulsion Burnouts . | . . . . . . . . . Robots Hopped . | . . . . . . . . . Cave-ins Triggered . | . . . . . . . . . Exploration Rate (%) 63 | 5 76 96 93 94 36 . 89 17 Regions Visited 8 Branch Regions 3 Pre-discovered Areas 2 | . . . 1 1 . . . . Known Exits Taken 6 | . 1 1 1 1 1 1 . . Unknown Exits Taken 1 | 1 . . . . . . . . Scrap Searched 1 | . . . . 1 . . . . Spaces Dug 12 | . . 12 . . . . . . Terrain Destroyed 209 | . 39 110 . 32 13 . 15 . Melee . | . . . . . . . . . Projectile 15 | . . . . . 13 . 2 . AOE 194 | . 39 110 . 32 . . 13 . Terrain Rammed . | . . . . . . . . . Walls Destroyed . | . . . . . . . . . Machines Disabled . | . . . . . . . . . Actions | -11 -10 -10 -10 -9 -8 -7 -7 -7 --------- Run | Yrd Mat Min Exi Min Mat Fac DSF Gar Total 4337 | 64 687 616 956 621 1091 13 222 67 Wait 350 | 3 47 18 . 19 241 . 21 1 Move 3480 | 46 578 545 953 573 601 10 133 41 Hop . | . . . . . . . . . Pick Up 99 | 8 18 4 1 4 48 . 15 1 Fast Attach 1 | . 1 . . . . . . . Attach 69 | 6 3 4 . 1 33 2 12 8 Detach . | . . . . . . . . . Swap 13 | 1 3 2 . . 5 . 2 . Drop 51 | . 3 3 1 . 28 1 8 7 Fire 263 | . 34 40 . 21 135 . 27 6 Melee 3 | . . . . . . . . 3 Ram . | . . . . . . . . . Kick . | . . . . . . . . . Crush 3 | . . . . 3 . . . . Escape Stasis 4 | . . . . . . . 4 . Rewire 1 | . . . 1 . . . . . Trap . | . . . . . . . . . Miscellaneous . | . . . . . . . . . Route ------- -11/Scrapyard -10/Materials (discovered 3 exits: [*Mat x2] / *Min) -10/Mines (discovered 3 exits: [*Mat x2] / *Exi) -10/Exiles (discovered 2 exits: *Min x2) -9/Mines (discovered 2 exits: *Mat x2) -8/Materials (discovered 3 exits: *Fac x2 / *Sto) -7/Factory -7/DSF -7/Garrison History --------- Turn | Location | Event 5 | -11/Scrapyard | Discovered new exit (range 16) 80 | -11/Scrapyard | Entered Materials 317 | -10/Materials | Build established: Mutant 606 | -10/Materials | Discovered new exit (range 15) 933 | -10/Materials | Discovered new exit (range 17) 955 | -10/Materials | Discovered new exit (range 20) 980 | -10/Materials | Identified exit to Mines 1176 | -10/Materials | Entered Mines 1637 | -10/Mines | Discovered new exit (range 13) 1638 | -10/Mines | Found a hidden stash of uninstalled traps 1665 | -10/Mines | Discovered new exit (range 3) 1772 | -10/Mines | Assisted by bots powering up and referring to "LRC-V3" 1854 | -10/Mines | Found a damaged Exp. Sensor Array with a note attached 1857 | -10/Mines | Found Prototype Device 1956 | -10/Mines | Excavation squad dispatched 1956 | -10/Mines | A large section of the Mines collapsed 2109 | -10/Mines | Deemed a non-threat by the Exiles lab entrance 2110 | -10/Mines | Discovered new exit (range 5) 2185 | -10/Mines | Identified exit to Exiles 2196 | -10/Mines | Entered Exiles 2196 | -10/Exiles | Accompanied by 3 allies 2197 | -10/Exiles | Identified exit to Mines 2281 | -10/Exiles | Met 8R-AWN 2313 | -10/Exiles | Met EX-HEX 2465 | -10/Exiles | Met EX-BIN 2655 | -10/Exiles | Met EX-DEC 2669 | -10/Exiles | Learned location of Zion (-6) 2754 | -10/Exiles | Visited The Gauntlet 3724 | -10/Exiles | Entered Mines 3724 | -9/Mines | Accompanied by 3 allies 3772 | -9/Mines | Assembled infested the area 4169 | -9/Mines | Found the Drone Emporium 4176 | -9/Mines | Found Prototype Device 4299 | -9/Mines | Discovered new exit (range 5) 4400 | -9/Mines | Discovered new exit (range 10) 4406 | -9/Mines | Learned location of Storage (-8) 4669 | -9/Mines | Learned 2 Materials zone layouts 4728 | -9/Mines | Identified exit to Materials 4733 | -9/Mines | Entered Materials 4733 | -8/Materials | Evolved 4 slots: Propulsion x2, Utility x2 5017 | -8/Materials | Discovered new exit (range 14) 5028 | -8/Materials | Build established: Scavenger-Mutant 5233 | -8/Materials | Identified exit to Storage 5687 | -8/Materials | Discovered new exit (range 12) 5714 | -8/Materials | Repaired Adv. Treads? 5859 | -8/Materials | Lost 7 parts (1p2n2u2w) 6282 | -8/Materials | Core integrity fell below 50% 6311 | -8/Materials | Discovered new exit (range 14) 6392 | -8/Materials | Identified exit to Factory 6393 | -8/Materials | Entered Factory 6393 | -7/Factory | Evolved 2 slots: Utility x1, Weapon x1 6410 | -7/Factory | Identified exit to DSF 6412 | -7/Factory | Entered DSF 6467 | -7/DSF | Additional patrols routed to DSF 6685 | -7/DSF | Lost 3 parts (2n1u) 6716 | -7/DSF | Sterilization system engaged 6736 | -7/DSF | Ambient heat levels rising (+10) 6751 | -7/DSF | Ambient heat levels rising (+10) 6766 | -7/DSF | Ambient heat levels rising (+10) 6781 | -7/DSF | Ambient heat levels rising (+10) 6796 | -7/DSF | Ambient heat levels rising (+10) 6811 | -7/DSF | Ambient heat levels rising (+10) 6820 | -7/DSF | Discovered new exit (range 11) 6822 | -7/DSF | Core integrity fell below 50% 6826 | -7/DSF | Ambient heat levels rising (+10) 6834 | -7/DSF | Core integrity fell below 20% 6838 | -7/DSF | Entered Garrison 6898 | -7/Garrison | Triggered checkpoint 6916 | -7/Garrison | Triggered checkpoint 6971 | -7/Garrison | Destroyed by G-47 Trooper with Particle Gun Last Messages --------------- Beams of light sweep through the air. An alarm sounds. Acquired Imp. Heat Sink. Acquired 46 matter. Garrison Door activated. L-41 Fighter knocked back. Critical hit (Smash). Hrd. Light Armor Plating destroyed. Acquired 3 matter. Hrd. Medium Armor Plating severed. Kinecellerator destroyed. Hvy. Machine Gun destroyed. System corrupted: Heat flow error (+287). G-47 Trooper destroyed. Assault Cannon destroyed. Power failure, Nuclear Core shutdown. Acquired 5 matter. Overheating: Matter decay (-6). Core Analyzer destroyed. System corrupted by crushing effect (+2). Reactive Plating destroyed. Map ----- +----------------------------------------------------+ | ?????????????????????????????????# #?????????????? | | ?????????????????????????????????# #?????????????? | | ?????????????????????????????????# #?????????????? | | ?????????????????????????????????# #???#####?????? | | ?????????????????????????????????# #???# [ #?????? | | ???????????????????????????????### #####==]#?????? | | ???????????????????????????????# ] #?????? | | ???????????????????????????????# #?????? | | ???????????????????????????????# ##########?????? | | ??????????#???####?????????????# #??????????????? | | ??????????# ?# ????????????# #??????????????? | | ????????### ## ######??????# #??????????????? | | ????????? ######## #??????????????? | | ????????? ^ #??????????????? | | ????????? ^ == #??????????????? | | ?????????# ?# ## * ###########??????????????? | | ???????### ## ##*![###??????????????????????? | | ???????# #??????????????????????? | | ???????# #??????????????????????? | | ???????# #??????????????????????? | | ???????# = #??????????????????????? | | ?????????# ## ##%* ###??????????????????????? | | ????????## ## ##=Y ############?????????????? | | ????? g g #?????????????? | | ????? %! #?????????????? | | ?????????# % bl @ #?????????????? | | ?????????###### ############# #?????????????? | | ??????????????# ??????????????????????????????? | | ??????????????####???????????????????????????????? | | ?????????????????????????????????????????????????? | | ?????????????????????????????????????????????????? | | ?????????????????????????????????????????????????? | | ?????????????????????????????????????????????????? | | ?????????????????????????????????????????????????? | | ?????????????????????????????????????????????????? | | ?????????????????????????????????????????????????? | | ?????????????????????????????????????????????????? | | ?????????????????????????????????????????????????? | | ?????????????????????????????????????????????????? | | ?????????????????????????????????????????????????? | | ?????????????????????????????????????????????????? | | ?????????????????????????????????????????????????? | | ?????????????????????????????????????????????????? | | ?????????????????????????????????????????????????? | | ?????????????????????????????????????????????????? | | ?????????????????????????????????????????????????? | | ?????????????????????????????????????????????????? | | ?????????????????????????????????????????????????? | | ?????????????????????????????????????????????????? | | ?????????????????????????????????????????????????? | +----------------------------------------------------+ Best States ------------- Heat Dissipation 48 Energy Generation 14 Energy Capacity 265 Matter Stores 300 Matter Capacity 300 Sight Range 18 Robot Scan Range 14 Terrain Scan Range 16 Terrain Scan Density 110 Armor Coverage 525 Resistance: KI 40 Resistance: TH 20 Resistance: EX 20 Resistance: EM 20 Resistance: I 20 Resistance: S 20 Resistance: P 20 Evasion (%) 55 Target Analysis 5 Core Analysis 6 Recoil Reduction 4 Kinecelleration 30 Offensive Hacking 10 Authchip Count 1 Item Schematics ----------------- None Robot Schematics ------------------ None Fabricated ------------ Nothing Alien Tech Used ----------------- None Achievements -------------- I Survived The Infestation Oops Challenges ------------ None Game ------ Seed SpikedMachineFocus Manual? 0 Play Time 01:19:44 Cumulative 5.1 hours Start 2025.03.20 @ 21:36:16 End 2025.03.20 @ 23:08:47 Sessions 1 Manual Loads 0 Difficulty Adventurer Special Mode None Game No. 7 Rogue 0 Adventurer 7 Explorer 0 Win Type - Total 0 Types 0/0/0/0/0/0/0/0/0 Lore% 8 Gallery% 7 Achievement% 8 Wizard Run 0 Options --------- Layout 0 ASCII 0 Keyboard 0 Movement Mouse Keybinds 0 Fullscreen 2 Font 24/Smallcaps Map View 76x50 Zoom Use 0% Tactical HUD 0 Map Filters NONE Filters NONE Steam 1 RUN: a087df68-a21f-45ed-8f2c-a6c03488a878